bitfinex-derivatives/quotes_BTCF0:USTF0_20250426
["timestamp","ask_amount","ask_price","bid_price","bid_amount"]
[1745707496860,0.5151829,94809.0,94808.0,0.4890651]
[1745707497858,0.5151829,94809.0,94808.0,0.15]
[1745707498056,0.5151829,94809.0,94808.0,0.21668]
[1745707498650,0.6206589,94809.0,94808.0,0.21668]
[1745707501750,0.6206589,94809.0,94808.0,0.15]
[1745707501956,0.2109118,94797.0,94796.0,0.2109045]
[1745707502163,0.4609118,94797.0,94796.0,0.3175845]
[1745707502364,0.5572118,94797.0,94796.0,0.3175845]
[1745707505052,0.5572118,94797.0,94796.0,0.10668]
[1745707507962,0.451788,94797.0,94789.0,0.06668]
[1745707508259,0.2109252,94790.0,94789.0,0.08]
[1745707508451,0.4609252,94790.0,94789.0,0.08]
[1745707508650,0.5257252,94790.0,94789.0,0.08]
[1745707509057,0.5257252,94790.0,94789.0,0.2909274]
[1745707509360,0.5257252,94790.0,94789.0,0.08]
[1745707510258,0.5257252,94790.0,94789.0,0.1115]
[1745707513855,0.5257252,94790.0,94789.0,0.08]
[1745707514362,0.052734,94785.0,94780.0,0.06664]
[1745707514556,0.2109452,94781.0,94780.0,0.17664]
[1745707514762,0.4509452,94781.0,94780.0,0.11]
[1745707514958,0.5141452,94781.0,94780.0,0.11]
[1745707515163,0.6196532,94781.0,94780.0,0.11]
[1745707518268,0.5141452,94781.0,94780.0,0.11]
[1745707518967,0.9320452,94781.0,94780.0,0.11]
[1745707519662,0.2109563,94776.0,94775.0,0.00158261]
[1745707519868,0.4509563,94776.0,94775.0,0.10158261]
[1745707520762,0.5150563,94776.0,94775.0,0.10158261]
[1745707521268,0.5150563,94776.0,94775.0,0.10258261]
[1745707522063,0.2109852,94763.0,94762.0,0.06668]
[1745707522367,0.4809852,94763.0,94762.0,0.14668]
[1745707522769,0.4809852,94763.0,94762.0,0.08]
[1745707523066,0.5450852,94763.0,94762.0,0.08]
[1745707523762,0.5450852,94763.0,94762.0,0.083]
[1745707525265,0.5128852,94763.0,94762.0,0.083]
[1745707526757,0.5128852,94763.0,94762.0,0.09090475]
[1745707527766,0.5429852,94763.0,94762.0,0.09090475]
[1745707537065,0.5429852,94763.0,94762.0,0.01090475]
[1745707539566,0.9608852,94763.0,94762.0,0.01090475]
[1745707540775,0.9608852,94763.0,94762.0,0.04260475]
[1745707547274,1.3216852,94763.0,94762.0,0.04260475]
[1745707549482,1.2915852,94763.0,94762.0,0.04260475]
[1745707550675,1.2915852,94763.0,94762.0,0.03960475]
[1745707550876,1.2915852,94763.0,94762.0,0.04160475]
[1745707553379,1.2596852,94763.0,94762.0,0.05160475]
[1745707553582,0.6879,94763.0,94762.0,0.30160475]
[1745707553887,0.6888852,94763.0,94762.0,0.29409225]
[1745707555390,0.6888852,94763.0,94762.0,0.54409225]
[1745707555892,0.6888852,94763.0,94762.0,0.29409225]
[1745707556784,0.6888852,94763.0,94762.0,0.3487591]
[1745707557184,0.2709852,94763.0,94762.0,0.3487591]
[1745707558194,0.06,94763.0,94762.0,0.3487591]
[1745707559083,0.2709852,94763.0,94762.0,0.3487591]
[1745707559279,0.2709852,94763.0,94762.0,0.4153991]
[1745707559686,0.2709852,94763.0,94762.0,0.36073225]
[1745707565192,0.06,94763.0,94762.0,0.36073225]
[1745707566795,0.2709852,94763.0,94762.0,0.36073225]
[1745707568498,0.06,94763.0,94762.0,0.36073225]
[1745707573205,0.2709852,94763.0,94762.0,0.36073225]
[1745707586605,0.3009852,94763.0,94762.0,0.36073225]
[1745707586911,0.5109852,94763.0,94762.0,0.36073225]
[1745707588213,0.5109852,94763.0,94762.0,0.01990475]
[1745707593306,0.5109852,94763.0,94762.0,0.00990475]
[1745707595314,0.5109852,94763.0,94762.0,0.01990475]
[1745707598516,0.5109852,94763.0,94762.0,0.00990475]
[1745707609528,0.5109852,94763.0,94762.0,0.01990475]
[1745707609828,0.5109852,94763.0,94762.0,0.08130475]
[1745707613027,0.5109852,94763.0,94762.0,0.05130475]
[1745707614426,0.5109852,94763.0,94762.0,0.04930475]
[1745707616234,0.8717852,94763.0,94762.0,0.04930475]
[1745707621037,0.8417852,94763.0,94762.0,0.04930475]
[1745707624140,0.92248561,94763.0,94762.0,0.04930475]
[1745707625827,0.35070041,94763.0,94762.0,0.62109225]
[1745707626032,0.12070041,94763.0,94762.0,0.92590754]
[1745707626329,0.08070041,94763.0,94762.0,1.03143554]
[1745707626528,0.10715973,94770.0,94769.0,0.2109719]
[1745707626742,0.13433364,94780.0,94779.0,0.2109496]
[1745707626932,0.26433364,94780.0,94779.0,0.76656489]
[1745707627239,0.26433364,94780.0,94779.0,0.87207289]
[1745707627442,0.26433364,94780.0,94779.0,0.97207289]
[1745707628435,0.26433364,94780.0,94779.0,0.9172576]
[1745707629831,0.13,94780.0,94779.0,0.9172576]
[1745707630240,0.13,94780.0,94779.0,0.9806576]
[1745707632241,0.13,94780.0,94779.0,0.8751496]
[1745707638038,0.13,94780.0,94779.0,0.9417096]
[1745707645641,0.0312,94796.0,94795.0,0.210914]
[1745707645847,0.17,94796.0,94795.0,0.778234]
[1745707646232,0.17,94796.0,94795.0,0.878234]
[1745707646446,0.17,94796.0,94795.0,0.941234]
[1745707646842,0.17,94796.0,94795.0,0.6638]
[1745707647043,0.3809118,94796.0,94795.0,0.20652]
[1745707647240,0.3809118,94796.0,94795.0,0.14]
[1745707647442,0.3809118,94796.0,94795.0,0.21686782]
[1745707647443,0.3819118,94796.0,94795.0,0.21686782]
[1745707647943,0.4149118,94796.0,94795.0,0.21686782]
[1745707648241,0.4149118,94796.0,94795.0,0.20652]
[1745707650335,0.4149118,94796.0,94795.0,0.21695915]
[1745707650539,0.4149118,94796.0,94795.0,0.20652]
[1745707653540,0.4149118,94796.0,94795.0,0.21730047]
[1745707654554,0.4149118,94796.0,94795.0,0.42821447]
[1745707654555,0.204,94796.0,94795.0,0.42821447]
[1745707654946,0.171,94796.0,94795.0,0.52821447]
[1745707655452,0.171,94796.0,94795.0,0.55931447]
[1745707655847,0.4137118,94796.0,94795.0,0.21730047]
[1745707657346,0.4137118,94796.0,94795.0,0.42821447]
[1745707664259,0.4137118,94796.0,94795.0,0.21730047]
[1745707667660,0.4137118,94796.0,94795.0,0.24800047]
[1745707669064,0.4137118,94796.0,94795.0,0.21730047]
[1745707672465,0.4137118,94796.0,94795.0,0.24860047]
[1745707674465,0.4137118,94796.0,94795.0,0.45951447]
[1745707674661,0.4137118,94796.0,94795.0,0.24860047]
[1745707676371,0.4137118,94796.0,94795.0,0.15078047]
[1745707685765,0.4137118,94796.0,94795.0,0.18398047]
[1745707688572,0.4137118,94796.0,94795.0,0.15078047]
[1745707689557,0.4137118,94796.0,94795.0,0.14]
[1745707694176,0.4446118,94796.0,94795.0,0.14]
[1745707695770,0.8625118,94796.0,94795.0,0.14]
[1745707697969,0.8625118,94796.0,94788.0,0.06648]
[1745707697970,0.2109274,94789.0,94788.0,0.06648]
[1745707698275,0.5009274,94789.0,94788.0,0.12648]
[1745707698869,0.5654274,94789.0,94788.0,0.12648]
[1745707699473,0.5664274,94789.0,94788.0,0.12648]
[1745707702075,0.5019274,94789.0,94788.0,0.12648]
[1745707702373,0.2819274,94789.0,94788.0,0.3374096]
[1745707702576,0.071,94789.0,94788.0,0.39211893]
[1745707702875,0.071,94789.0,94788.0,0.3686096]
[1745707703177,0.071,94789.0,94788.0,0.4686096]
[1745707703868,0.2819274,94789.0,94788.0,0.25768]
[1745707704068,0.2819274,94789.0,94788.0,0.4686096]
[1745707704272,0.2819274,94789.0,94788.0,0.18778]
[1745707705173,0.2819274,94789.0,94788.0,0.24249777]
[1745707705875,0.2819274,94789.0,94788.0,0.18778]
[1745707709776,0.3120274,94789.0,94788.0,0.18778]
[1745707712580,0.5020274,94789.0,94788.0,0.18778]
[1745707716888,0.4719274,94789.0,94788.0,0.18778]
[1745707723078,0.5353274,94789.0,94788.0,0.18778]
[1745707732283,0.5353274,94789.0,94788.0,0.15658]
[1745707735878,0.5353274,94789.0,94788.0,0.15654]
[1745707736486,0.5353274,94789.0,94788.0,0.3674696]
[1745707737085,0.5353274,94789.0,94788.0,0.15654]
[1745707737485,0.5353274,94789.0,94788.0,0.21132332]
[1745707739783,0.5353274,94789.0,94788.0,0.15654]
[1745707749587,0.5353274,94789.0,94788.0,0.21134371]
[1745707749987,0.5353274,94789.0,94788.0,0.15654]
[1745707750492,0.5353274,94789.0,94788.0,0.21134349]
[1745707750793,0.5353274,94789.0,94788.0,0.15654]
[1745707751189,0.5353274,94789.0,94788.0,0.21134362]
[1745707751489,0.5353274,94789.0,94788.0,0.15654]
[1745707752189,0.5353274,94789.0,94788.0,0.21134342]
[1745707752697,0.5353274,94789.0,94788.0,0.15654]
[1745707753794,0.5353274,94789.0,94788.0,0.21134378]
[1745707754896,0.3244,94789.0,94788.0,0.42227338]
[1745707755097,0.5353274,94789.0,94788.0,0.15654]
[1745707755298,0.5353274,94789.0,94788.0,0.0901]
[1745707755601,0.5353274,94789.0,94788.0,0.15654]
[1745707760500,0.5353274,94789.0,94788.0,0.2113436]
[1745707761898,0.5353274,94789.0,94788.0,0.1812436]
[1745707764410,0.2109385,94784.0,94783.0,0.00016]
[1745707764705,0.4709385,94784.0,94783.0,0.09]
[1745707765402,0.5345385,94784.0,94783.0,0.09]
[1745707765597,0.5355385,94784.0,94783.0,0.09]
[1745707798030,0.5355385,94784.0,94783.0,0.1217]
[1745707799525,0.5047385,94784.0,94783.0,0.1217]
[1745707799726,0.5047385,94784.0,94783.0,0.1531]
[1745707809721,0.2938,94784.0,94783.0,0.1531]
[1745707809922,0.4719385,94784.0,94783.0,0.3640407]
[1745707810123,0.4719385,94784.0,94783.0,0.41885183]
[1745707810323,0.4719385,94784.0,94783.0,0.3640407]
[1745707810726,0.4719385,94784.0,94783.0,0.1531]
[1745707811324,0.4719385,94784.0,94783.0,0.1864]
[1745707818036,0.261,94784.0,94783.0,0.3973407]
[1745707818239,0.041,94784.0,94783.0,0.3973407]
[1745707818429,0.00017,94793.0,94792.0,0.2109207]
[1745707818630,0.09017,94793.0,94792.0,0.8117207]
[1745707818948,0.09,94793.0,94792.0,0.8664903]
[1745707819337,0.09,94793.0,94792.0,0.9605903]
[1745707819738,0.09,94793.0,94792.0,0.9722207]
[1745707824435,0.00017,94801.0,94798.0,0.0527264]
[1745707824642,0.17017,94801.0,94799.0,0.0643]
[1745707824943,0.17,94801.0,94799.0,0.2143]
[1745707825547,0.0316,94800.0,94799.0,0.4252051]
[1745707825848,0.3625029,94800.0,94799.0,0.4252051]
[1745707826045,0.1516,94800.0,94799.0,0.4252051]
[1745707827847,0.3625029,94800.0,94799.0,0.4252051]
[1745707828143,0.12,94800.0,94799.0,0.5306891]
[1745707828345,0.12,94800.0,94799.0,0.9914891]
[1745707828544,0.3608,94824.0,94799.0,0.83518431]
[1745707828746,0.14017,94808.0,94807.0,0.2108873]
[1745707829049,0.14017,94808.0,94807.0,0.5172873]
[1745707829237,0.14,94808.0,94807.0,0.5172873]
[1745707829438,0.14,94808.0,94807.0,0.5792873]
[1745707834954,0.14,94808.0,94807.0,0.68476329]
[1745707835661,0.14,94808.0,94807.0,1.04556329]
[1745707837154,0.14,94808.0,94807.0,0.68476329]
[1745707839149,0.14,94808.0,94807.0,0.5792873]
[1745707846564,0.1725,94808.0,94807.0,0.5792873]
[1745707853256,0.1725,94808.0,94807.0,0.63390434]
[1745707857372,0.1725,94808.0,94807.0,0.60350434]
[1745707861375,0.1725,94808.0,94807.0,0.26101704]
[1745707861376,0.3833851,94808.0,94807.0,0.26101704]
[1745707861674,0.7441851,94808.0,94807.0,0.2064]
[1745707861874,0.7441851,94808.0,94807.0,0.19470237]
[1745707862081,0.7441851,94808.0,94807.0,0.1565]
[1745707872977,0.3833851,94808.0,94807.0,0.1565]
[1745707873180,0.7441851,94808.0,94807.0,0.1565]
[1745707877883,0.3833851,94808.0,94807.0,0.1565]
[1745707878078,0.7441851,94808.0,94807.0,0.1565]
[1745707890793,0.2109051,94799.0,94798.0,0.031]
[1745707891095,0.2109207,94792.0,94791.0,0.0306]
[1745707891292,0.4809207,94792.0,94791.0,0.22766]
[1745707891895,0.5455207,94792.0,94791.0,0.19636]
[1745707894988,0.9063207,94792.0,94791.0,0.19636]
[1745707895391,0.9063207,94792.0,94791.0,0.13]
[1745707904000,0.2109541,94777.0,94776.0,0.00158263]
[1745707904306,0.4809541,94777.0,94776.0,0.19861611]
[1745707904502,0.4809541,94777.0,94776.0,0.18798263]
[1745707905404,0.5139541,94777.0,94776.0,0.18798263]
[1745707905704,0.5139541,94777.0,94776.0,0.13218229]
[1745707906003,0.5139541,94777.0,94776.0,0.13418229]
[1745707906206,0.5139541,94777.0,94776.0,0.16468229]
[1745707909412,0.5139541,94777.0,94776.0,0.23108229]
[1745707915811,0.5139541,94777.0,94776.0,0.16468229]
[1745707919600,0.5139541,94777.0,94776.0,0.15408263]
[1745707925118,0.5139541,94777.0,94765.0,0.032]
[1745707925119,0.052743,94769.0,94765.0,0.032]
[1745707925306,0.5717763,94767.0,94766.0,0.13046]
[1745707925507,0.8617763,94767.0,94766.0,0.26046]
[1745707925818,0.9263763,94767.0,94766.0,0.26046]
[1745707926605,0.9263763,94767.0,94766.0,0.26446]
[1745707927016,0.9263763,94767.0,94766.0,0.27494318]
[1745707932716,0.5655763,94767.0,94766.0,0.27494318]
[1745707932917,0.9263763,94767.0,94766.0,0.27494318]
[1745707949628,0.9263763,94767.0,94766.0,0.26446]
[1745707951638,0.9263763,94767.0,94766.0,0.27502774]
[1745707954140,0.5655763,94767.0,94766.0,0.27502774]
[1745707954345,0.9263763,94767.0,94766.0,0.27502774]
[1745707956644,0.5655763,94767.0,94766.0,0.27502774]
[1745707956849,0.9263763,94767.0,94766.0,0.27502774]
[1745707957346,0.9263763,94767.0,94766.0,0.21092774]
[1745707959543,0.9263763,94767.0,94766.0,0.20036]
[1745707963359,0.9263763,94767.0,94766.0,0.21082472]
[1745707965460,0.9263763,94767.0,94766.0,0.20036]
[1745707965651,0.9263763,94767.0,94766.0,0.134]
[1745707966462,0.9587763,94767.0,94766.0,0.134]
[1745707967654,0.9587763,94767.0,94766.0,0.13]
[1745707967854,0.9587763,94767.0,94766.0,0.132]
[1745707968562,0.9587763,94767.0,94766.0,0.002]
[1745707968753,0.9657763,94767.0,94766.0,0.002]
[1745707970447,0.9657763,94767.0,94757.0,0.00527663]
[1745707970448,0.2109964,94758.0,94757.0,0.00527663]
[1745707970647,0.5009964,94758.0,94757.0,0.03527663]
[1745707971055,0.5659964,94758.0,94757.0,0.03527663]
[1745707972062,0.5659964,94758.0,94757.0,0.03627663]
[1745707972247,0.5659964,94758.0,94757.0,0.04698661]
[1745707972447,0.5659964,94758.0,94757.0,0.03627663]
[1745707973755,0.9838964,94758.0,94757.0,0.04404778]
[1745707973949,0.9848964,94758.0,94757.0,0.04304778]
[1745707982156,0.9516964,94758.0,94757.0,0.04304778]
[1745707982668,0.4189,94758.0,94757.0,1.23723838]
[1745707982856,0.6898964,94758.0,94757.0,0.76437689]
[1745707983060,0.6898964,94758.0,94757.0,0.19784629]
[1745707983262,0.6898964,94758.0,94757.0,0.16416629]
[1745707984065,0.6898964,94758.0,94757.0,0.10936778]
[1745707984862,0.6898964,94758.0,94757.0,0.16417066]
[1745707985465,0.2719964,94758.0,94757.0,0.16417066]
[1745707985667,0.3025964,94758.0,94757.0,0.16417066]
[1745707990873,0.3025964,94758.0,94757.0,0.09785066]
[1745707991072,0.3025964,94758.0,94757.0,0.16417066]
[1745707991461,0.3025964,94758.0,94757.0,0.09785066]
[1745707991659,0.2425964,94758.0,94757.0,0.04304778]
[1745707991863,0.5325964,94758.0,94757.0,0.04304778]
[1745707992066,0.5656964,94758.0,94757.0,0.04304778]
[1745707997168,0.9835964,94758.0,94757.0,0.04304778]
[1745707997563,1.3443964,94758.0,94757.0,0.04304778]
[1745708007970,0.9835964,94758.0,94757.0,0.04304778]
[1745708008172,1.3443964,94758.0,94757.0,0.04304778]
[1745708012675,0.9835964,94758.0,94757.0,0.04304778]
[1745708012880,1.3443964,94758.0,94757.0,0.04304778]
[1745708014278,0.1055126,94745.0,94742.0,0.06628]
[1745708014576,0.2110298,94743.0,94742.0,0.15]
[1745708014878,0.4610298,94743.0,94742.0,0.15]
[1745708015078,0.5268298,94743.0,94742.0,0.15]
[1745708015484,0.5268298,94743.0,94742.0,0.15777]
[1745708015871,0.5268298,94743.0,94742.0,0.16077]
[1745708016274,0.9447298,94743.0,94742.0,0.16077]
[1745708016578,0.9447298,94743.0,94742.0,0.15877]
[1745708016779,0.2110432,94737.0,94736.0,0.16001403]
[1745708017076,0.4610432,94737.0,94736.0,0.22806735]
[1745708017671,0.5229432,94737.0,94736.0,0.22806735]
[1745708018977,0.5229432,94737.0,94736.0,0.23006735]
[1745708020079,0.3119,94737.0,94729.0,0.0301]
[1745708020279,0.5718565,94731.0,94730.0,0.10105563]
[1745708020482,0.8418565,94731.0,94730.0,0.10105563]
[1745708020780,1.2597565,94731.0,94730.0,0.10105563]
[1745708021382,1.3220565,94731.0,94730.0,0.10105563]
[1745708021975,1.3220565,94731.0,94730.0,0.10305563]
[1745708022770,1.3220565,94731.0,94730.0,0.13485563]
[1745708023470,1.3220565,94731.0,94730.0,0.14262463]
[1745708024180,1.3220565,94731.0,94730.0,0.17502463]
[1745708024482,1.2915565,94731.0,94730.0,0.17502463]
[1745708026187,1.2597565,94731.0,94730.0,0.17502463]
[1745708026986,1.0297565,94731.0,94730.0,0.17502463]
[1745708032291,0.6118565,94731.0,94730.0,0.17502463]
[1745708043496,0.6118565,94731.0,94730.0,0.20652463]
[1745708048406,0.2510565,94731.0,94730.0,0.20652463]
[1745708050498,0.2834565,94731.0,94730.0,0.20652463]
[1745708051103,0.2834565,94731.0,94730.0,0.17412463]
[1745708052301,0.3148565,94731.0,94730.0,0.24040463]
[1745708053797,0.3148565,94731.0,94730.0,0.17710463]
[1745708054002,0.3148565,94731.0,94730.0,0.11082463]
[1745708054508,0.3148565,94731.0,94730.0,0.1657175]
[1745708057005,0.6756565,94731.0,94730.0,0.1657175]
[1745708058001,0.3148565,94731.0,94730.0,0.1657175]
[1745708058499,0.6756565,94731.0,94730.0,0.1657175]
[1745708059795,0.6756565,94731.0,94730.0,0.11082463]
[1745708061003,0.8956565,94731.0,94730.0,0.16574974]
[1745708064808,0.2110632,94728.0,94727.0,0.0052783]
[1745708065018,0.4910632,94728.0,94727.0,0.0752783]
[1745708065609,0.5216632,94728.0,94727.0,0.08332451]
[1745708067115,0.5216632,94728.0,94727.0,0.08532451]
[1745708067809,0.5216632,94728.0,94727.0,0.08332451]
[1745708068113,0.5216632,94728.0,94727.0,0.08432451]
[1745708071607,0.2110922,94715.0,94714.0,0.06628]
[1745708071811,0.8218922,94715.0,94714.0,0.19628]
[1745708072415,0.8855922,94715.0,94714.0,0.19628]
[1745708073511,0.8855922,94715.0,94714.0,0.20402996]
[1745708073915,0.8855922,94715.0,94714.0,0.20702996]
[1745708074307,0.8855922,94715.0,94714.0,0.20602996]
[1745708075713,0.8855922,94715.0,94714.0,0.13974996]
[1745708078821,0.8855922,94715.0,94690.0,0.16001403]
[1745708078822,0.0527774,94708.0,94690.0,0.16001403]
[1745708079022,0.5719234,94701.0,94700.0,0.16105596]
[1745708079215,0.8519234,94701.0,94700.0,0.16105596]
[1745708079818,0.9149234,94701.0,94700.0,0.16105596]
[1745708080124,0.9149234,94701.0,94700.0,0.19805596]
[1745708081427,0.9149234,94701.0,94700.0,0.20584586]
[1745708083026,0.5541234,94701.0,94700.0,0.20584586]
[1745708083220,0.9149234,94701.0,94700.0,0.20584586]
[1745708083420,0.9149234,94701.0,94700.0,0.17284586]
[1745708085128,0.5541234,94701.0,94700.0,0.17284586]
[1745708085336,0.9149234,94701.0,94700.0,0.17284586]
[1745708089738,0.9149234,94701.0,94700.0,0.17184586]
[1745708090124,0.9149234,94701.0,94700.0,0.16884586]
[1745708090431,0.9149234,94701.0,94700.0,0.16984586]
[1745708091032,0.5541234,94701.0,94700.0,0.16984586]
[1745708091228,0.9149234,94701.0,94700.0,0.16984586]
[1745708095138,0.5541234,94701.0,94700.0,0.16984586]
[1745708095435,1.2757234,94701.0,94700.0,0.16984586]
[1745708096435,0.5541234,94701.0,94700.0,0.16984586]
[1745708096631,1.2757234,94701.0,94700.0,0.16984586]
[1745708097139,0.5541234,94701.0,94700.0,0.16984586]
[1745708097343,1.2757234,94701.0,94700.0,0.16984586]
[1745708098234,0.5541234,94701.0,94700.0,0.16984586]
[1745708098434,1.2757234,94701.0,94700.0,0.16984586]
[1745708098832,0.5541234,94701.0,94700.0,0.16984586]
[1745708099033,1.2757234,94701.0,94700.0,0.16984586]
[1745708101138,1.2757234,94701.0,94695.0,0.0324]
[1745708101139,0.0527847,94695.0,94690.0,0.0319]
[1745708101334,0.2111591,94685.0,94684.0,0.06632]
[1745708101551,0.3311591,94685.0,94684.0,0.22430498]
[1745708102945,0.3311591,94685.0,94684.0,0.22930498]
[1745708103844,0.3311591,94685.0,94684.0,0.22430498]
[1745708104059,0.3632591,94685.0,94684.0,0.22730498]
[1745708104547,0.3632591,94685.0,94684.0,0.16098498]
[1745708106444,0.3632591,94685.0,94684.0,0.15798498]
[1745708110251,0.7240591,94685.0,94684.0,0.15798498]
[1745708126762,0.3632591,94685.0,94684.0,0.15798498]
[1745708126963,0.7240591,94685.0,94684.0,0.15798498]
[1745708128963,0.3632591,94685.0,94684.0,0.15798498]
[1745708129150,0.7240591,94685.0,94684.0,0.15798498]
[1745708130364,0.3632591,94685.0,94684.0,0.15798498]
[1745708130754,0.7240591,94685.0,94684.0,0.15798498]
[1745708131463,0.3632591,94685.0,94684.0,0.15798498]
[1745708131664,0.7240591,94685.0,94684.0,0.15798498]
[1745708133254,0.6919591,94685.0,94684.0,0.15798498]
[1745708133460,0.12,94685.0,94684.0,0.52922272]
[1745708133866,0.3311591,94685.0,94684.0,0.52922272]
[1745708134274,0.3311591,94685.0,94684.0,0.41738142]
[1745708139167,0.3311591,94685.0,94684.0,0.31176942]
[1745708139772,0.3311591,94685.0,94684.0,0.25730498]
[1745708141174,0.3643591,94685.0,94684.0,0.22430498]
[1745708141975,0.3643591,94685.0,94684.0,0.25680498]
[1745708146479,0.3643591,94685.0,94684.0,0.19048498]
[1745708146680,0.3643591,94685.0,94684.0,0.25680498]
[1745708147586,0.3643591,94685.0,94684.0,0.22430498]
[1745708149781,0.7251591,94685.0,94684.0,0.22430498]
[1745708154278,0.3643591,94685.0,94684.0,0.22430498]
[1745708154483,0.7251591,94685.0,94684.0,0.22430498]
[1745708160985,0.3643591,94685.0,94684.0,0.22430498]
[1745708161191,0.7251591,94685.0,94684.0,0.22430498]
[1745708161593,0.3643591,94685.0,94684.0,0.22430498]
[1745708161891,0.7251591,94685.0,94684.0,0.22430498]
[1745708162283,0.3643591,94685.0,94684.0,0.22430498]
[1745708162687,0.7251591,94685.0,94684.0,0.22430498]
[1745708166891,0.7251591,94685.0,94684.0,0.15798498]
[1745708181496,0.3643591,94685.0,94684.0,0.15798498]
[1745708181804,0.7251591,94685.0,94684.0,0.15798498]
[1745708182811,0.7251591,94685.0,94684.0,0.21247718]
[1745708184607,0.7251591,94685.0,94684.0,0.15798498]
[1745708188902,0.3643591,94685.0,94684.0,0.15798498]
[1745708189101,0.7251591,94685.0,94684.0,0.15798498]
[1745708197907,0.3643591,94685.0,94684.0,0.15798498]
[1745708198107,0.7251591,94685.0,94684.0,0.15798498]
[1745708199012,0.211188,94672.0,94671.0,0.16159832]
[1745708199205,0.491188,94672.0,94671.0,0.25339832]
[1745708199910,0.552888,94672.0,94671.0,0.25339832]
[1745708200213,0.552888,94672.0,94671.0,0.26147444]
[1745708201009,0.552888,94672.0,94671.0,0.25989015]
[1745708201508,0.552888,94672.0,94671.0,0.22809015]
[1745708201707,0.552888,94672.0,94652.0,0.13158463]
[1745708201708,0.44732801,94672.0,94654.0,0.21389005]
[1745708201907,0.211226,94655.0,94654.0,0.35389005]
[1745708202103,0.211226,94655.0,94654.0,0.38519005]
[1745708202300,0.532926,94655.0,94654.0,0.38519005]
[1745708202512,0.312926,94655.0,94654.0,0.38519005]
[1745708202808,0.272926,94655.0,94654.0,0.38519005]
[1745708203009,0.322926,94655.0,94654.0,0.39119005]
[1745708203407,0.512926,94655.0,94654.0,0.39809432]
[1745708203612,0.512926,94655.0,94654.0,0.40870732]
[1745708204902,0.512926,94655.0,94654.0,0.40670732]
[1745708205810,0.512926,94655.0,94654.0,0.19281727]
[1745708208307,0.512926,94655.0,94654.0,0.18220427]
[1745708210725,0.512926,94655.0,94654.0,0.15090427]
[1745708219327,0.512926,94655.0,94654.0,0.21460427]
[1745708221729,0.481226,94655.0,94654.0,0.21460427]
[1745708223722,0.512926,94655.0,94654.0,0.21460427]
[1745708230924,0.512926,94655.0,94654.0,0.21360427]
[1745708232127,0.00017,94659.0,94654.0,0.42925227]
[1745708232330,0.00017,94659.0,94658.0,0.5719982]
[1745708232534,0.00017,94659.0,94658.0,0.85923167]
[1745708232832,0.2111959,94659.0,94658.0,1.06487567]
[1745708233034,0.2111959,94659.0,94658.0,1.13115567]
[1745708233534,0.2111959,94659.0,94658.0,1.13215567]
[1745708234433,0.4135941,94668.0,94658.0,1.13215567]
[1745708234434,0.2111748,94669.0,94668.0,0.2111736]
[1745708234636,0.2111791,94669.0,94668.0,0.41560707]
[1745708234832,0.2111791,94669.0,94668.0,0.52123906]
[1745708235039,0.2111791,94669.0,94668.0,0.61283906]
[1745708236433,0.2111791,94669.0,94668.0,0.97363906]
[1745708237136,0.2121791,94669.0,94668.0,0.97363906]
[1745708237933,0.31865088,94670.0,94669.0,0.2111736]
[1745708238124,0.31865088,94670.0,94669.0,0.46010707]
[1745708238326,0.31865088,94670.0,94669.0,0.56573906]
[1745708238734,0.2111728,94670.0,94669.0,0.56573906]
[1745708238938,0.0321,94677.0,94675.0,0.211158]
[1745708238939,0.2111644,94676.0,94675.0,0.211158]
[1745708239132,0.2511644,94676.0,94675.0,0.427438]
[1745708239534,0.2830644,94676.0,94675.0,0.21628]
[1745708240238,0.2830644,94676.0,94675.0,0.31628]
[1745708240544,0.2830644,94676.0,94675.0,0.31828]
[1745708241037,0.2830644,94676.0,94675.0,0.6350642]
[1745708241238,0.2111644,94676.0,94675.0,0.6350642]
[1745708241434,0.2111525,94681.0,94680.0,0.2111405]
[1745708241740,0.3039396,94681.0,94680.0,0.3711405]
[1745708242139,0.04,94681.0,94680.0,0.4767605]
[1745708242439,0.2639219,94689.0,94688.0,0.2111241]
[1745708242640,0.2639219,94689.0,94688.0,0.3611241]
[1745708242841,0.2639219,94689.0,94688.0,0.4667321]
[1745708243245,0.3167058,94689.0,94688.0,0.4667321]
[1745708244230,0.2111386,94689.0,94688.0,0.4667321]
[1745708247138,0.2111386,94689.0,94688.0,0.5667321]
[1745708247845,0.2111386,94689.0,94688.0,0.9275321]
[1745708249046,0.2111386,94689.0,94688.0,1.1028321]
[1745708249246,0.2111386,94689.0,94688.0,0.9275321]
[1745708249847,0.2111386,94689.0,94688.0,0.9585321]
[1745708254250,0.2111386,94689.0,94688.0,0.9192041]
[1745708257151,0.2111386,94689.0,94688.0,0.8882041]
[1745708258453,0.2431386,94689.0,94688.0,0.8882041]
[1745708267953,0.2424268,94690.0,94689.0,0.211129]
[1745708268148,0.2424268,94690.0,94689.0,0.45830718]
[1745708268349,0.2424268,94690.0,94689.0,0.48890718]
[1745708268943,0.2434268,94690.0,94689.0,0.48890718]
[1745708272362,0.0323,94690.0,94689.0,0.48890718]
[1745708273561,0.063,94690.0,94689.0,0.48890718]
[1745708273765,0.0323,94690.0,94689.0,0.48890718]
[1745708275064,0.0285,94697.0,94689.0,0.38338618]
[1745708275267,0.0052,94698.0,94697.0,0.2111112]
[1745708275456,0.0052,94698.0,94697.0,0.52548938]
[1745708275657,0.0052,94698.0,94697.0,0.63108938]
[1745708275963,0.0052,94698.0,94697.0,0.99188938]
[1745708276159,0.0052,94698.0,94697.0,1.05368938]
[1745708276364,0.2110849,94711.0,94710.0,0.2638447]
[1745708276564,0.2910849,94711.0,94710.0,0.53446288]
[1745708277166,0.2910849,94711.0,94710.0,0.55304276]
[1745708277464,0.2910849,94711.0,94710.0,0.28919806]
[1745708278052,0.2910849,94711.0,94710.0,0.50028026]
[1745708278256,0.08,94711.0,94710.0,0.50028026]
[1745708278559,0.004,94711.0,94710.0,0.60586425]
[1745708278761,0.004,94711.0,94710.0,0.96666425]
[1745708279664,0.04367808,94718.0,94717.0,0.2110666]
[1745708279863,0.04367808,94718.0,94717.0,0.41544478]
[1745708280566,0.04367808,94718.0,94717.0,0.47754478]
[1745708281262,0.2110644,94718.0,94717.0,0.53031098]
[1745708281457,0.2110644,94718.0,94717.0,0.59655098]
[1745708281655,0.2120644,94718.0,94717.0,0.59655098]
[1745708282168,0.2120644,94718.0,94717.0,0.69655098]
[1745708283065,0.001,94718.0,94717.0,0.69655098]
[1745708284269,0.001,94718.0,94717.0,0.6421728]
[1745708286869,0.001,94718.0,94717.0,0.6116728]
[1745708287270,0.2120644,94718.0,94717.0,0.34784]
[1745708287472,0.2761644,94718.0,94717.0,0.5589066]